[Event "Torneo Nuevo Centro. Jornada 10"]
[Site "Chess.com"]
[Date "2020.08.21"]
[Round "9"]
[White "Rabbani Perez, Oumaima "]
[Black "Valverde Alcaide, Miguel Alejandro"]
[Result "0-1"]
[WhiteElo "706"]
[BlackElo "910"]
[TimeControl "180+2"]
[EndTime "12:08:53 PDT"]
[Termination "Victoria de mentafurterei por jaque mate"]

1. e3 {[%clk 0:03:01.9]} 1... e5 {[%clk 0:03:00.3]} 2. Bc4 {[%clk 0:02:58]} 2...
Qe7 {[%clk 0:02:54.7]} 3. Nf3 {[%clk 0:02:53.3]} 3... Nf6 {[%clk 0:02:39.5]} 4.
O-O {[%clk 0:02:46.7]} 4... d5 {[%clk 0:02:39.6]} 5. Be2 {[%clk 0:02:38.9]} 5...
Bf5 {[%clk 0:02:29.8]} 6. Ng5 {[%clk 0:02:33.6]} 6... Nfd7 {[%clk 0:02:20.9]} 7.
Nf3 {[%clk 0:02:21.9]} 7... Nc5 {[%clk 0:02:15.5]} 8. Bb5+ {[%clk 0:02:19.7]}
8... c6 {[%clk 0:02:15.4]} 9. Ba4 {[%clk 0:02:19.3]} 9... b5 {[%clk 0:02:14.8]}
10. Bb3 {[%clk 0:02:16.5]} 10... e4 {[%clk 0:02:13.4]} 11. Ne1 {[%clk
0:02:10.7]} 11... Qg5 {[%clk 0:02:02.4]} 12. f4 {[%clk 0:02:09.7]} 12... Qg6
{[%clk 0:01:56.3]} 13. Nc3 {[%clk 0:02:00.5]} 13... Bg4 {[%clk 0:01:52.8]} 14.
Nf3 {[%clk 0:01:58.2]} 14... exf3 {[%clk 0:01:48.6]} 15. gxf3 {[%clk 0:01:56.9]}
15... Bxf3+ {[%clk 0:01:47.9]} 16. Kf2 {[%clk 0:01:51.1]} 16... Bxd1 {[%clk
0:01:48.4]} 17. Rxd1 {[%clk 0:01:48.6]} 17... Nxb3 {[%clk 0:01:47.7]} 18. Rb1
{[%clk 0:01:47.6]} 18... Nc5 {[%clk 0:01:39.3]} 19. Rg1 {[%clk 0:01:37.3]} 19...
Ne4+ {[%clk 0:01:35.3]} 20. Nxe4 {[%clk 0:01:34.7]} 20... Qxe4 {[%clk
0:01:35.6]} 21. d3 {[%clk 0:01:32.1]} 21... Qf5 {[%clk 0:01:23.2]} 22. e4 {[%clk
0:01:25.8]} 22... Bc5+ {[%clk 0:01:21.7]} 23. Kf1 {[%clk 0:01:19.6]} 23... dxe4
{[%clk 0:01:20.9]} 24. Rxg7 {[%clk 0:01:15]} 24... Qh3+ {[%clk 0:01:14.2]} 25.
Rg2 {[%clk 0:01:06.5]} 25... Rg8 {[%clk 0:01:07.2]} 26. Bd2 {[%clk 0:00:52.8]}
26... Qxg2+ {[%clk 0:01:04.6]} 27. Ke1 {[%clk 0:00:50.1]} 27... Qh1+ {[%clk
0:01:01.4]} 28. Ke2 {[%clk 0:00:42.4]} 28... Qxb1 {[%clk 0:00:58.9]} 29. Ba5
{[%clk 0:00:40.7]} 29... Qxc2+ {[%clk 0:00:56.9]} 30. Ke1 {[%clk 0:00:32]} 30...
Qxd3 {[%clk 0:00:55.8]} 31. Bc7 {[%clk 0:00:25.9]} 31... Rg1# {[%clk 0:00:54.3]}
0

[Event "Torneo Nuevo Centro. Jornada 10"]
[Site "Chess.com"]
[Date "2020.08.21"]
[Round "9"]
[White "Donate Moreno, Silvia"]
[Black "Bendayán Claros, Aaron"]
[Result "0-1"]
[WhiteElo "1846"]
[BlackElo "1987"]
[TimeControl "180+2"]
[EndTime "12:08:58 PDT"]
[Termination "Victoria de Cuajada_Zero por abandono"]

1. e4 {[%clk 0:03:01.9]} 1... c6 {[%clk 0:02:57.3]} 2. d4 {[%clk 0:03:01.9]}
2... d5 {[%clk 0:02:58.2]} 3. exd5 {[%clk 0:03:03.8]} 3... cxd5 {[%clk 0:02:59]}
4. Bd3 {[%clk 0:03:03.9]} 4... Nc6 {[%clk 0:02:58.6]} 5. c3 {[%clk 0:03:03.3]}
5... Nf6 {[%clk 0:02:59.6]} 6. Bf4 {[%clk 0:03:03.2]} 6... g6 {[%clk 0:03:00.5]}
7. Nf3 {[%clk 0:03:02.7]} 7... Bg7 {[%clk 0:03:01.5]} 8. Nbd2 {[%clk 0:03:02.7]}
8... O-O {[%clk 0:03:02.2]} 9. O-O {[%clk 0:03:01.7]} 9... Nh5 {[%clk
0:03:02.2]} 10. Be3 {[%clk 0:03:01.7]} 10... Qd6 {[%clk 0:03:02.3]} 11. Re1
{[%clk 0:02:50.1]} 11... Nf4 {[%clk 0:02:53.4]} 12. Bf1 {[%clk 0:02:50.8]} 12...
Bf5 {[%clk 0:02:53.8]} 13. Nb3 {[%clk 0:02:49.9]} 13... b6 {[%clk 0:02:53.2]}
14. Qd2 {[%clk 0:02:50.2]} 14... Ne6 {[%clk 0:02:50.7]} 15. Nc1 {[%clk
0:02:49.3]} 15... Be4 {[%clk 0:02:42.2]} 16. Be2 {[%clk 0:02:45.9]} 16... f5
{[%clk 0:02:40.5]} 17. Nd3 {[%clk 0:02:46]} 17... f4 {[%clk 0:02:37.1]} 18. Nde5
{[%clk 0:02:28.4]} 18... fxe3 {[%clk 0:02:33.9]} 19. Qxe3 {[%clk 0:02:27.6]}
19... Nxe5 {[%clk 0:02:34.2]} 20. dxe5 {[%clk 0:02:23.9]} 20... Qc5 {[%clk
0:02:27.6]} 21. Nd4 {[%clk 0:02:19.5]} 21... Nxd4 {[%clk 0:02:23.5]} 22. cxd4
{[%clk 0:02:21]} 22... Qb4 {[%clk 0:02:22.5]} 23. g4 {[%clk 0:02:12.8]} 23...
Qxb2 {[%clk 0:02:18.8]} 24. Rac1 {[%clk 0:02:08.3]} 24... Rac8 {[%clk
0:02:14.7]} 25. f3 {[%clk 0:02:04.6]} 25... Bc2 {[%clk 0:02:07.8]} 26. Qd2
{[%clk 0:02:04.9]} 26... Rc7 {[%clk 0:02:00.8]} 27. Bd1 {[%clk 0:01:59.7]} 27...
Rfc8 {[%clk 0:01:59.8]} 28. Re2 {[%clk 0:02:00.1]} 28... Rc4 {[%clk 0:01:31.7]}
29. Rxc2 {[%clk 0:01:57.4]} 29... Rxc2 {[%clk 0:01:21.9]} 30. Bxc2 {[%clk
0:01:57.3]} 30... Rc4 {[%clk 0:01:22.2]} 31. Bb3 {[%clk 0:01:54]} 31... Qxd4+
{[%clk 0:01:21.9]} 32. Kg2 {[%clk 0:01:51.4]} 32... e6 {[%clk 0:00:13.4]} 33.
Bxc4 {[%clk 0:01:49.5]} 33... Qxc4 {[%clk 0:00:15.3]} 34. f4 {[%clk 0:01:48.2]}
34... Bf8 {[%clk 0:00:15.8]} 35. Qc2 {[%clk 0:01:46.9]} 35... Qxf4 {[%clk
0:00:14.6]} 36. h3 {[%clk 0:01:43]} 36... Bc5 {[%clk 0:00:14.9]} 37. Qa4 {[%clk
0:01:40.6]} 37... Kf7 {[%clk 0:00:11.7]} 38. Qa5 {[%clk 0:01:42]} 38... bxa5
{[%clk 0:00:11.7]} 0

[Event "Torneo Nuevo Centro. Jornada 10"]
[Site "Chess.com"]
[Date "2020.08.21"]
[Round "9"]
[White "Tormos Beltran, Maite"]
[Black "Polikarpov, Anton"]
[Result "1-0"]
[WhiteElo "1447"]
[BlackElo "1291"]
[TimeControl "180+2"]
[EndTime "12:09:04 PDT"]
[Termination "Victoria de TORBEL79 por abandono"]

1. d4 {[%clk 0:00:49.1]} 1... d5 {[%clk 0:03:00]} 2. c4 {[%clk 0:00:49.5]} 2...
c6 {[%clk 0:03:00]} 3. Nc3 {[%clk 0:00:50.3]} 3... Bf5 {[%clk 0:02:59]} 4. Nf3
{[%clk 0:00:51.4]} 4... Bg4 {[%clk 0:02:59.5]} 5. g3 {[%clk 0:00:52.4]} 5...
Bxf3 {[%clk 0:03:00]} 6. exf3 {[%clk 0:00:53.8]} 6... g6 {[%clk 0:03:00.5]} 7.
Bg2 {[%clk 0:00:55.1]} 7... Bg7 {[%clk 0:03:00.8]} 8. O-O {[%clk 0:00:56.5]}
8... Nf6 {[%clk 0:02:58.5]} 9. cxd5 {[%clk 0:00:57.8]} 9... cxd5 {[%clk
0:02:58.5]} 10. f4 {[%clk 0:00:59]} 10... O-O {[%clk 0:02:58.8]} 11. Qc2 {[%clk
0:00:59.9]} 11... Ne4 {[%clk 0:02:56.4]} 12. Nxe4 {[%clk 0:00:58.7]} 12... dxe4
{[%clk 0:02:57.1]} 13. Qxe4 {[%clk 0:00:59.5]} 13... Na6 {[%clk 0:02:54.4]} 14.
Qxb7 {[%clk 0:00:59.5]} 14... Nc7 {[%clk 0:02:51.7]} 15. Qe4 {[%clk 0:00:57.6]}
15... Bxd4 {[%clk 0:02:50.9]} 16. Rb1 {[%clk 0:00:52.6]} 16... f5 {[%clk
0:02:46.3]} 17. Qc2 {[%clk 0:00:50]} 17... Nd5 {[%clk 0:02:40]} 18. Qb3 {[%clk
0:00:46.3]} 18... Rb8 {[%clk 0:02:35.3]} 19. Qxd5+ {[%clk 0:00:42.5]} 19... Qxd5
{[%clk 0:02:34.1]} 20. Bxd5+ {[%clk 0:00:43.2]} 20... Kh8 {[%clk 0:02:32.4]} 21.
b3 {[%clk 0:00:41.4]} 21... Rfe8 {[%clk 0:02:29.2]} 22. Bb2 {[%clk 0:00:41.4]}
22... Bxb2 {[%clk 0:02:28.1]} 23. Rxb2 {[%clk 0:00:42.4]} 23... e6 {[%clk
0:02:28.8]} 24. Bc4 {[%clk 0:00:42]} 24... Rbd8 {[%clk 0:02:27.7]} 25. Re2
{[%clk 0:00:41.7]} 25... a5 {[%clk 0:02:24.2]} 26. Rxe6 {[%clk 0:00:41.5]} 26...
Rxe6 {[%clk 0:02:24.4]} 27. Bxe6 {[%clk 0:00:42.3]} 27... Rd6 {[%clk 0:02:25]}
28. Bc4 {[%clk 0:00:43]} 28... Rd2 {[%clk 0:02:25.4]} 29. Re1 {[%clk 0:00:42.5]}
29... Rxa2 {[%clk 0:02:26.1]} 30. Re8+ {[%clk 0:00:42.8]} 30... Kg7 {[%clk
0:02:25.7]} 31. Re7+ {[%clk 0:00:43.3]} 31... Kf6 {[%clk 0:02:26.2]} 32. Ra7
{[%clk 0:00:43.6]} 32... Ra1+ {[%clk 0:02:25.9]} 33. Kg2 {[%clk 0:00:44.8]}
33... g5 {[%clk 0:02:25.1]} 34. Rxh7 {[%clk 0:00:44.9]} 34... gxf4 {[%clk
0:02:25.4]} 35. gxf4 {[%clk 0:00:46]} 35... a4 {[%clk 0:02:24.8]} 36. bxa4
{[%clk 0:00:45.4]} 36... Rxa4 {[%clk 0:02:25.4]} 37. Rf7+ {[%clk 0:00:45.5]}
37... Kg6 {[%clk 0:02:24.1]} 38. Rc7 {[%clk 0:00:44.9]} 38... Rb4 {[%clk
0:02:20.2]} 39. Bf7+ {[%clk 0:00:44.5]} 39... Kf6 {[%clk 0:02:20.5]} 40. Bh5
{[%clk 0:00:43.4]} 40... Rxf4 {[%clk 0:02:20.3]} 41. Rc6+ {[%clk 0:00:42.9]}
41... Kg5 {[%clk 0:02:19]} 42. Be8 {[%clk 0:00:40.7]} 42... Re4 {[%clk
0:02:19.3]} 43. Rg6+ {[%clk 0:00:39.1]} 43... Kf4 {[%clk 0:02:17.4]} 44. Bc6
{[%clk 0:00:35.7]} 44... Rc4 {[%clk 0:02:16.8]} 45. Rh6 {[%clk 0:00:35.6]} 45...
Ke5 {[%clk 0:02:16]} 46. Ba8 {[%clk 0:00:32.5]} 46... Ra4 {[%clk 0:02:15.2]} 47.
Bc6 {[%clk 0:00:31.3]} 47... Ra6 {[%clk 0:02:14.3]} 48. h4 {[%clk 0:00:27.1]}
48... Kd4 {[%clk 0:02:14.5]} 49. Rf6 {[%clk 0:00:27.6]} 49... f4 {[%clk
0:02:13.6]} 50. Kf3 {[%clk 0:00:27.5]} 50... Kc5 {[%clk 0:02:13.1]} 51. Kxf4
{[%clk 0:00:28.1]} 51... Ra8 {[%clk 0:02:13.5]} 52. Bxa8 {[%clk 0:00:27.9]} 1

[Event "Torneo Nuevo Centro. Jornada 10"]
[Site "Chess.com"]
[Date "2020.08.21"]
[Round "9"]
[White "Perrot, Fabien "]
[Black "Chofre Murcia, Adrián"]
[Result "0-1"]
[WhiteElo "1113"]
[BlackElo "1613"]
[TimeControl "180+2"]
[EndTime "12:09:10 PDT"]
[Termination "Victoria de Kelorian por tiempo"]

1. d4 {[%clk 0:03:00]} 1... f5 {[%clk 0:03:00.3]} 2. c4 {[%clk 0:02:53]} 2...
Nf6 {[%clk 0:03:00.7]} 3. Nc3 {[%clk 0:02:52.8]} 3... e6 {[%clk 0:03:01.4]} 4.
Bg5 {[%clk 0:02:52]} 4... h6 {[%clk 0:02:59.9]} 5. Bh4 {[%clk 0:02:50.7]} 5...
g5 {[%clk 0:02:50.5]} 6. Bg3 {[%clk 0:02:49.9]} 6... f4 {[%clk 0:02:51.7]} 7.
Qd3 {[%clk 0:02:41.3]} 7... fxg3 {[%clk 0:02:48.8]} 8. hxg3 {[%clk 0:02:42.1]}
8... Qe7 {[%clk 0:02:43.6]} 9. Qg6+ {[%clk 0:02:38.6]} 9... Qf7 {[%clk
0:02:43.6]} 10. Qd3 {[%clk 0:02:33.9]} 10... d6 {[%clk 0:02:41.2]} 11. e3 {[%clk
0:02:34.6]} 11... Bd7 {[%clk 0:02:38.8]} 12. Be2 {[%clk 0:02:35.2]} 12... Nc6
{[%clk 0:02:37]} 13. a3 {[%clk 0:02:30.4]} 13... Qh7 {[%clk 0:02:33.9]} 14. Qd2
{[%clk 0:02:27.1]} 14... Na5 {[%clk 0:02:33.4]} 15. Bd3 {[%clk 0:02:26]} 15...
Qg7 {[%clk 0:02:32.8]} 16. Bc2 {[%clk 0:02:21.8]} 16... Nxc4 {[%clk 0:02:32.5]}
17. Qc1 {[%clk 0:02:16.8]} 17... Nb6 {[%clk 0:02:27]} 18. Nge2 {[%clk
0:02:06.9]} 18... O-O-O {[%clk 0:02:17.4]} 19. a4 {[%clk 0:01:51.1]} 19... Nfd5
{[%clk 0:02:12]} 20. a5 {[%clk 0:01:37.5]} 20... Nc4 {[%clk 0:02:10.1]} 21. a6
{[%clk 0:01:33.5]} 21... b6 {[%clk 0:02:07.2]} 22. Nb5 {[%clk 0:01:12.7]} 22...
Bxb5 {[%clk 0:02:05.4]} 23. Bb3 {[%clk 0:01:08.5]} 23... Qd7 {[%clk 0:01:39.8]}
24. Bxc4 {[%clk 0:01:00.7]} 24... Bxc4 {[%clk 0:01:40.4]} 25. Qxc4 {[%clk
0:01:01.3]} 25... Bg7 {[%clk 0:01:33.2]} 26. O-O {[%clk 0:00:19.8]} 26... Rhf8
{[%clk 0:01:28.2]} 27. Rfc1 {[%clk 0:00:15.9]} 27... h5 {[%clk 0:01:24.6]} 28.
Rc2 {[%clk 0:00:10.1]} 28... Kb8 {[%clk 0:01:22.8]} 29. Rac1 {[%clk 0:00:09.1]}
29... Rc8 {[%clk 0:01:23.5]} 30. e4 {[%clk 0:00:07.9]} 30... Ne7 {[%clk
0:01:20.4]} 31. Qb3 {[%clk 0:00:08.6]} 31... h4 {[%clk 0:01:14.9]} 32. Rc3
{[%clk 0:00:03.8]} 32... hxg3 {[%clk 0:01:15.2]} 33. Nxg3 {[%clk 0:00:02.6]}
33... Bxd4 {[%clk 0:01:14.8]} 0

[Event "Torneo Nuevo Centro. Jornada 10"]
[Site "Chess.com"]
[Date "2020.08.21"]
[Round "9"]
[White "Garrido Silos, Pablo"]
[Black "Méndez Giménez , Néstor Emmanuel"]
[Result "1-0"]
[WhiteElo "1445"]
[BlackElo "1243"]
[TimeControl "180+2"]
[EndTime "12:09:13 PDT"]
[Termination "Victoria de Picotina por abandono"]

1. e4 {[%clk 0:03:01.9]} 1... e6 {[%clk 0:03:00.7]} 2. Qe2 {[%clk 0:02:59.8]}
2... Nc6 {[%clk 0:02:56.9]} 3. Nf3 {[%clk 0:02:59.1]} 3... Nf6 {[%clk
0:02:56.6]} 4. g3 {[%clk 0:02:59]} 4... Be7 {[%clk 0:02:55.7]} 5. Bg2 {[%clk
0:02:59.6]} 5... d5 {[%clk 0:02:55.8]} 6. exd5 {[%clk 0:02:59.4]} 6... exd5
{[%clk 0:02:55.9]} 7. O-O {[%clk 0:03:00.1]} 7... O-O {[%clk 0:02:55.7]} 8. d4
{[%clk 0:02:58.3]} 8... b6 {[%clk 0:02:55.9]} 9. Be3 {[%clk 0:02:56.8]} 9... a5
{[%clk 0:02:55.1]} 10. Re1 {[%clk 0:02:56.1]} 10... Ba6 {[%clk 0:02:52.5]} 11.
Qd2 {[%clk 0:02:54.1]} 11... Ne4 {[%clk 0:02:44]} 12. Qd1 {[%clk 0:02:48.6]}
12... Qd6 {[%clk 0:02:40]} 13. c3 {[%clk 0:02:48.2]} 13... Bf6 {[%clk
0:02:34.1]} 14. Nbd2 {[%clk 0:02:47.1]} 14... Nxd2 {[%clk 0:02:33.2]} 15. Qxd2
{[%clk 0:02:46.5]} 15... Rfe8 {[%clk 0:02:30.7]} 16. Bf4 {[%clk 0:02:46.1]}
16... Rxe1+ {[%clk 0:02:29.3]} 17. Rxe1 {[%clk 0:02:48]} 17... Qd7 {[%clk
0:02:28.9]} 18. Ne5 {[%clk 0:02:33.6]} 18... Nxe5 {[%clk 0:02:28.6]} 19. Bxe5
{[%clk 0:02:33.3]} 19... Bxe5 {[%clk 0:02:29.3]} 20. Rxe5 {[%clk 0:02:34.2]}
20... Re8 {[%clk 0:02:28.8]} 21. Qe3 {[%clk 0:02:20.9]} 21... Bb5 {[%clk
0:02:25.2]} 22. Rxe8+ {[%clk 0:02:19.5]} 22... Qxe8 {[%clk 0:02:25.7]} 23. Qxe8+
{[%clk 0:02:19.5]} 23... Bxe8 {[%clk 0:02:25.1]} 24. Bxd5 {[%clk 0:02:20.6]}
24... c6 {[%clk 0:02:23.1]} 25. Be4 {[%clk 0:02:19.3]} 25... g6 {[%clk
0:02:20.6]} 26. f4 {[%clk 0:02:19.5]} 26... f5 {[%clk 0:02:19.6]} 27. Bd3 {[%clk
0:02:20.9]} 27... b5 {[%clk 0:02:17.4]} 28. Kf2 {[%clk 0:02:21.7]} 28... Kf7
{[%clk 0:02:17.3]} 29. b3 {[%clk 0:02:18.7]} 29... Ke6 {[%clk 0:02:12.9]} 30.
Ke3 {[%clk 0:02:16.7]} 30... Kd5 {[%clk 0:02:11.9]} 31. c4+ {[%clk 0:02:11.9]}
31... bxc4 {[%clk 0:02:12.1]} 32. bxc4+ {[%clk 0:02:13.6]} 32... Kd6 {[%clk
0:02:12.2]} 33. Bc2 {[%clk 0:02:10]} 33... Bf7 {[%clk 0:02:12.4]} 34. Bb3 {[%clk
0:02:09.8]} 34... c5 {[%clk 0:02:08.3]} 35. d5 {[%clk 0:02:04.9]} 35... h6
{[%clk 0:02:05.8]} 36. Ba4 {[%clk 0:02:02.9]} 36... g5 {[%clk 0:02:04.8]} 37.
Bc6 {[%clk 0:01:49.2]} 37... Kc7 {[%clk 0:01:48.1]} 38. fxg5 {[%clk 0:01:48.4]}
38... hxg5 {[%clk 0:01:48.3]} 39. h4 {[%clk 0:01:46.6]} 39... gxh4 {[%clk
0:01:48.7]} 40. gxh4 {[%clk 0:01:46.9]} 40... Kd6 {[%clk 0:01:49.3]} 41. Kf4
{[%clk 0:01:43.2]} 41... Bg6 {[%clk 0:01:38.3]} 42. Bb7 {[%clk 0:01:41.3]} 42...
a4 {[%clk 0:01:35.1]} 43. Bc8 {[%clk 0:01:39.6]} 43... Ke7 {[%clk 0:01:24.7]}
44. Bxf5 {[%clk 0:01:39.6]} 44... Bh5 {[%clk 0:01:22.6]} 45. a3 {[%clk
0:01:38.5]} 45... Kf6 {[%clk 0:01:21.2]} 46. Bd7 {[%clk 0:01:35.2]} 46... Bd1
{[%clk 0:01:16.3]} 47. h5 {[%clk 0:01:32.7]} 47... Ke7 {[%clk 0:01:13.4]} 48. h6
{[%clk 0:01:29]} 48... Bc2 {[%clk 0:01:11.9]} 49. Bf5 {[%clk 0:01:28]} 49...
Bxf5 {[%clk 0:01:03.5]} 50. Kxf5 {[%clk 0:01:29.9]} 50... Kf7 {[%clk 0:01:05.3]}
51. d6 {[%clk 0:01:30.5]} 1

[Event "Torneo Nuevo Centro. Jornada 10"]
[Site "Chess.com"]
[Date "2020.08.21"]
[Round "9"]
[White "Soliva Ruiz, Ramon"]
[Black "Roca Cruz, Rafael"]
[Result "0-1"]
[WhiteElo "1521"]
[BlackElo "1827"]
[TimeControl "180+2"]
[EndTime "12:09:17 PDT"]
[Termination "Victoria de RafaRocaCruz por abandono"]

1. d4 {[%clk 0:03:01.9]} 1... b5 {[%clk 0:03:00.5]} 2. Bf4 {[%clk 0:03:01.8]}
2... Bb7 {[%clk 0:03:00.2]} 3. a3 {[%clk 0:03:01.4]} 3... e6 {[%clk 0:03:00.4]}
4. Nc3 {[%clk 0:03:01.4]} 4... a6 {[%clk 0:03:00]} 5. e3 {[%clk 0:02:59.8]} 5...
Nf6 {[%clk 0:03:00.1]} 6. Nf3 {[%clk 0:02:57.4]} 6... Be7 {[%clk 0:02:59.8]} 7.
Be2 {[%clk 0:02:57.4]} 7... O-O {[%clk 0:03:00.1]} 8. O-O {[%clk 0:02:57.8]}
8... d6 {[%clk 0:03:00]} 9. Nd2 {[%clk 0:02:45.5]} 9... Nbd7 {[%clk 0:02:59.5]}
10. Bf3 {[%clk 0:02:46.1]} 10... Bxf3 {[%clk 0:02:55.3]} 11. Nxf3 {[%clk
0:02:46.7]} 11... c5 {[%clk 0:02:56.2]} 12. Ne2 {[%clk 0:02:32.7]} 12... Nh5
{[%clk 0:02:53.2]} 13. dxc5 {[%clk 0:02:27.1]} 13... Nxc5 {[%clk 0:02:48.7]} 14.
b4 {[%clk 0:02:00.8]} 14... Ne4 {[%clk 0:02:29.4]} 15. Qd3 {[%clk 0:02:00.4]}
15... Nxf4 {[%clk 0:02:20.3]} 16. Nxf4 {[%clk 0:02:00.7]} 16... d5 {[%clk
0:02:12.4]} 17. Nd2 {[%clk 0:01:30]} 17... Bf6 {[%clk 0:01:52]} 18. Rac1 {[%clk
0:01:09.5]} 18... Nd6 {[%clk 0:01:28.6]} 19. Rfd1 {[%clk 0:00:55.5]} 19... g6
{[%clk 0:01:23.6]} 20. e4 {[%clk 0:00:37.5]} 20... dxe4 {[%clk 0:01:03]} 21.
Nxe4 {[%clk 0:00:37.9]} 21... Nxe4 {[%clk 0:01:03.1]} 22. Qxe4 {[%clk
0:00:38.7]} 22... Qc7 {[%clk 0:00:57.9]} 23. Rd3 {[%clk 0:00:21.7]} 23... Bg5
{[%clk 0:00:53.4]} 24. g3 {[%clk 0:00:14.3]} 24... Rad8 {[%clk 0:00:41.6]} 25.
Rcd1 {[%clk 0:00:14.6]} 25... Qxc2 {[%clk 0:00:29.3]} 26. Rxd8 {[%clk 0:00:14]}
26... Qxe4 {[%clk 0:00:29.9]} 0

[Event "Torneo Nuevo Centro. Jornada 10"]
[Site "Chess.com"]
[Date "2020.08.21"]
[Round "9"]
[White "Blanco Solaz, Ramón"]
[Black "Montesinos Diaz, Luis"]
[Result "0-1"]
[WhiteElo "1985"]
[BlackElo "1889"]
[TimeControl "180+2"]
[EndTime "12:09:20 PDT"]
[Termination "Victoria de Gwiso_06 por abandono"]

1. e4 {[%clk 0:03:01.9]} 1... c6 {[%clk 0:02:55.9]} 2. c4 {[%clk 0:03:02.7]}
2... d5 {[%clk 0:02:56.6]} 3. exd5 {[%clk 0:03:04.6]} 3... cxd5 {[%clk
0:02:58.4]} 4. cxd5 {[%clk 0:03:06.2]} 4... Nf6 {[%clk 0:02:59.7]} 5. Nc3 {[%clk
0:03:07]} 5... Nxd5 {[%clk 0:02:59.1]} 6. d4 {[%clk 0:03:08.9]} 6... Nc6 {[%clk
0:02:59.4]} 7. Bc4 {[%clk 0:03:09.3]} 7... Nf6 {[%clk 0:02:55]} 8. Be3 {[%clk
0:03:03.2]} 8... Bf5 {[%clk 0:02:54.9]} 9. Nf3 {[%clk 0:03:02.9]} 9... e6 {[%clk
0:02:56.1]} 10. O-O {[%clk 0:03:03.7]} 10... Bd6 {[%clk 0:02:51.9]} 11. h3
{[%clk 0:03:01.3]} 11... O-O {[%clk 0:02:52.2]} 12. a3 {[%clk 0:03:02.3]} 12...
a6 {[%clk 0:02:52.5]} 13. Nh4 {[%clk 0:02:59.3]} 13... Bg6 {[%clk 0:02:48.4]}
14. Nxg6 {[%clk 0:02:58.2]} 14... hxg6 {[%clk 0:02:50.3]} 15. Qf3 {[%clk
0:02:55]} 15... Rc8 {[%clk 0:02:49.6]} 16. Rad1 {[%clk 0:02:54.5]} 16... Qe7
{[%clk 0:02:45.7]} 17. Ba2 {[%clk 0:02:53.9]} 17... Rfd8 {[%clk 0:02:38.4]} 18.
Rfe1 {[%clk 0:02:54.6]} 18... Qc7 {[%clk 0:02:35.5]} 19. Bg5 {[%clk 0:02:52.2]}
19... Be7 {[%clk 0:02:31.9]} 20. Bf4 {[%clk 0:02:44.1]} 20... Qb6 {[%clk
0:02:27.1]} 21. d5 {[%clk 0:02:36.9]} 21... exd5 {[%clk 0:02:21.7]} 22. Nxd5
{[%clk 0:02:37.9]} 22... Nxd5 {[%clk 0:02:21.4]} 23. Bxd5 {[%clk 0:02:38.3]}
23... Bf6 {[%clk 0:02:16.8]} 24. b4 {[%clk 0:02:30.2]} 24... Nd4 {[%clk
0:02:03.8]} 25. Qg4 {[%clk 0:02:30.7]} 25... Rc2 {[%clk 0:01:52.2]} 26. Be4
{[%clk 0:01:47.5]} 26... Ra2 {[%clk 0:01:26.6]} 27. Re3 {[%clk 0:01:45.5]} 27...
Ne2+ {[%clk 0:01:19.2]} 28. Rxe2 {[%clk 0:01:42.9]} 28... Rxd1+ {[%clk 0:01:20]}
29. Kh2 {[%clk 0:01:44.8]} 29... Rxe2 {[%clk 0:01:11.6]} 30. Qxe2 {[%clk
0:01:45.6]} 30... Rd4 {[%clk 0:00:58.1]} 31. f3 {[%clk 0:01:37.7]} 31... Qe6
{[%clk 0:00:49.1]} 32. Qc2 {[%clk 0:01:35.8]} 32... Be5 {[%clk 0:00:38.2]} 33.
Bxe5 {[%clk 0:01:27.9]} 33... Qxe5+ {[%clk 0:00:40.1]} 34. g3 {[%clk 0:01:26.5]}
34... Qd6 {[%clk 0:00:37.5]} 35. Qc8+ {[%clk 0:01:18.6]} 35... Kh7 {[%clk
0:00:37.9]} 36. h4 {[%clk 0:01:19.6]} 36... Rd2+ {[%clk 0:00:37]} 37. Kh3 {[%clk
0:01:20.8]} 37... Qd7+ {[%clk 0:00:30.2]} 38. Qxd7 {[%clk 0:01:20.4]} 38... Rxd7
{[%clk 0:00:32.1]} 39. g4 {[%clk 0:01:18.3]} 39... b6 {[%clk 0:00:31.5]} 40. a4
{[%clk 0:01:12.7]} 40... Rd4 {[%clk 0:00:29.9]} 0

[Event "Torneo Nuevo Centro. Jornada 10"]
[Site "Chess.com"]
[Date "2020.08.21"]
[Round "9"]
[White "Salvador Buiza, Victor"]
[Black "Sampedro Roig, Josep Francesc"]
[Result "1-0"]
[WhiteElo "1897"]
[BlackElo "1826"]
[TimeControl "180+2"]
[EndTime "12:09:23 PDT"]
[Termination "Victoria de TERROROSCURO666 por tiempo"]

1. e4 {[%clk 0:03:01.9]} 1... Nf6 {[%clk 0:03:00.6]} 2. e5 {[%clk 0:03:02.6]}
2... Nd5 {[%clk 0:03:01.3]} 3. c4 {[%clk 0:03:04.2]} 3... Nb6 {[%clk 0:03:01.9]}
4. d4 {[%clk 0:03:05.2]} 4... d6 {[%clk 0:03:02.7]} 5. exd6 {[%clk 0:03:07]}
5... cxd6 {[%clk 0:03:03.4]} 6. Nc3 {[%clk 0:03:08.2]} 6... g6 {[%clk
0:03:04.2]} 7. Be2 {[%clk 0:03:09.2]} 7... Bg7 {[%clk 0:03:05]} 8. Nf3 {[%clk
0:03:10.7]} 8... O-O {[%clk 0:03:05.7]} 9. b3 {[%clk 0:03:12.2]} 9... Nc6 {[%clk
0:03:06.2]} 10. Bb2 {[%clk 0:03:12.6]} 10... e5 {[%clk 0:03:06.9]} 11. d5 {[%clk
0:03:12.6]} 11... Ne7 {[%clk 0:03:07.6]} 12. O-O {[%clk 0:03:13.6]} 12... h6
{[%clk 0:03:04.6]} 13. Nd2 {[%clk 0:03:13.6]} 13... Nf5 {[%clk 0:02:55.9]} 14.
f4 {[%clk 0:03:13.4]} 14... Nd4 {[%clk 0:02:49.5]} 15. fxe5 {[%clk 0:03:04.9]}
15... Bxe5 {[%clk 0:02:43.4]} 16. Nf3 {[%clk 0:03:03.9]} 16... Nxf3+ {[%clk
0:02:32.7]} 17. Bxf3 {[%clk 0:03:00.5]} 17... Qh4 {[%clk 0:02:09.1]} 18. g3
{[%clk 0:02:47]} 18... Bxg3 {[%clk 0:01:46.2]} 19. hxg3 {[%clk 0:02:47.2]} 19...
Qxg3+ {[%clk 0:01:47]} 20. Bg2 {[%clk 0:02:48.1]} 20... Bh3 {[%clk 0:01:42.1]}
21. Qf3 {[%clk 0:02:48]} 21... Qxf3 {[%clk 0:01:38.9]} 22. Rxf3 {[%clk
0:02:48.1]} 22... Bg4 {[%clk 0:01:37.7]} 23. Rff1 {[%clk 0:02:46]} 23... f5
{[%clk 0:01:34.3]} 24. Kh2 {[%clk 0:02:44]} 24... Nd7 {[%clk 0:01:30.9]} 25. Nb5
{[%clk 0:02:44.2]} 25... Rae8 {[%clk 0:01:16]} 26. Rae1 {[%clk 0:02:34.9]} 26...
Be2 {[%clk 0:00:49.7]} 27. Rf2 {[%clk 0:02:30.4]} 27... Bd3 {[%clk 0:00:41.5]}
28. Rxe8 {[%clk 0:02:20.1]} 28... Rxe8 {[%clk 0:00:42.2]} 29. Rd2 {[%clk
0:02:20.8]} 29... Bb1 {[%clk 0:00:35.1]} 30. Nxd6 {[%clk 0:02:11.9]} 30... Re1
{[%clk 0:00:34.6]} 31. Bd4 {[%clk 0:01:53.8]} 31... b6 {[%clk 0:00:24.1]} 32.
Nb5 {[%clk 0:01:43.1]} 32... a6 {[%clk 0:00:19.6]} 33. Nc7 {[%clk 0:01:42.6]}
33... a5 {[%clk 0:00:13.2]} 34. Ne6 {[%clk 0:01:36.6]} 34... g5 {[%clk
0:00:10.6]} 35. d6 {[%clk 0:01:29.9]} 35... f4 {[%clk 0:00:07.9]} 36. Bd5 {[%clk
0:01:29.5]} 36... Kh7 {[%clk 0:00:07.6]} 37. Kg2 {[%clk 0:01:23.7]} 37... h5
{[%clk 0:00:03.4]} 38. Bc6 {[%clk 0:01:22.7]} 1